Cogmind - Beta 17 @@@ ROGUE MODE // 2026.07.16 @ 17:25:03 Player: Suffixing Result: Destroyed by S-10 Pest with Light Assault Rifle Performance ------------- Evolutions (0) 0 Regions Visited (2) 400 Robots Destroyed (20) 100 Value Destroyed (455) 455 Prototype IDs (3) 60 Alien Tech Used (0) 0 Bonus (8007) 8007 TOTAL SCORE: 9022 Bonus ------- Follower Combat Kills 7 Prayed to X0-1V1 5000 Major X0-1V1 Interference 3000 Cogmind --------- Core Integrity 0/150 Matter 103/150 Energy 1100/1100 System Corruption 0% Temperature Cool (0) Movement Core (1350) Ox26 Location -10/Subcaves Parts ------- > --- POWER (1) -------- (None) > --- PROPULSION (2) --- (None) > --- UTILITY (3) ------ Huge Storage Unit > --- WEAPON (1) ------- (None) > --- INVENTORY (25) --- Ion Engine Light Nuclear Core Light Nuclear Core Light Treads Subdweller Monowheel Subdweller Monowheel Improved Heat Sink Large Storage Unit Subdweller Laser Light Assault Rifle Light Assault Rifle Light Assault Rifle Light Assault Rifle Shotgun Shotgun Heavy Hammer Peak State ------------ > --- POWER ------------ Light Ion Engine > --- PROPULSION ------- Light Treads Light Treads > --- UTILITY ---------- Huge Storage Unit X0-1V1's Piety Tracker > --- WEAPON ----------- Shotgun Shotgun > --- INVENTORY -------- Ion Engine Light Nuclear Core Light Nuclear Core Light Treads Wheel Improved Heat Sink Large Storage Unit Light Assault Rifle Light Assault Rifle Light Assault Rifle Light Assault Rifle Shotgun Shotgun [Rating: 23] Favorites ----------- Power Light Ion Engine Engine Light Ion Engine Propulsion Light Treads Treads Light Treads Leg Aluminum Leg Wheel Wheel Utility Huge Storage Unit Device X0-1V1's Piety Tracker Storage Huge Storage Unit Weapon Shotgun Energy Gun Subdweller Laser Ballistic Gun Shotgun Build | -11 -10 -10 ------- Run | Yrd Mat Sub Slots Evolved . | . . . Power . | . . . Propulsion . | . . . Utility . | . . . Weapon . | . . . Parts Attached 11 | 3 4 4 Power . | . . . Engine . | . . . Core . | . . . Reactor . | . . . Propulsion 4 | 2 . 2 Treads 3 | 2 . 1 Leg . | . . . Wheel 1 | . . 1 Hover . | . . . Flight . | . . . Utility 2 | . 2 . Device 1 | . 1 . Storage 1 | . 1 . Processor . | . . . Hackware . | . . . Protection . | . . . Artifact . | . . . Weapon 5 | 1 2 2 Energy Gun 1 | . . 1 Energy Cannon . | . . . Ballistic Gun 4 | 1 2 1 Ballistic Cannon . | . . . Launcher . | . . . Special Weapon . | . . . Impact Weapon . | . . . Slashing Weapon . | . . . Piercing Weapon . | . . . Special Melee Weapon . | . . . Unidentified Prototypes 1 | . 1 . Parts Lost 7 | . . 7 Power 1 | . . 1 Propulsion 3 | . . 3 Utility 1 | . . 1 Weapon 2 | . . 2 Highest Loss Streak 4 | . . 4 To Critical Strikes . | . . . Average Backups 12 | 6 8 14 Power 2 | 1 2 3 Propulsion 2 | 4 1 3 Utility 1 | . 1 2 Weapon 5 | 1 3 6 Tool/Special . | . . . Unused Backups 12 | . 1 11 Power 2 | . . 2 Propulsion 2 | . . 2 Utility 3 | . 1 2 Weapon 5 | . . 5 Tool/Special . | . . . Average Slot Usage (%) 92 | . 85 95 Engine 13 | . 14 12 Treads 26 | . 28 25 Device 8 | . . 13 Storage 14 | . 14 14 Energy Gun 2 | . . 3 Ballistic Gun 24 | . 28 22 Peak Build Rating 23 | 6 23 23 Average Rating 17 | 6 8 22 On Entrance 11 | 6 6 23 Avg Prop Armor Cover (%) . | . . . Naked Turns . | . . . Heaviest Build 91 | 10 90 91 Greatest Support 40 | 40 40 40 Greatest Overweight (x) 27 | . 2 27 Average Overweight (x) 2 | . 1 2 Largest Inventory Capacity 25 | 8 25 25 Average Capacity 24 | 8 24 25 Most Carried 18 | 6 14 18 Average Carried 12 | 5 8 14 Final Capacity 25 | 8 25 25 Final Carried 16 | 2 13 16 Class Distribution -------------------- 100% | Mutant Dominant Class ---------------- Mutant | -10/Materials Mutant | -10/Subcaves Resources | -11 -10 -10 ----------- Run | Yrd Mat Sub Matter Collected 607 | 137 233 237 Remotely . | . . . Salvage Created 584 | . 416 168 Parts 47 | . 31 16 Haulers Intercepted 1 | . 1 . Recyclers Shooed . | . . . Parts Field Recycled . | . . . Retrieved Matter . | . . . Parts Self-Destructed 19 | . . 19 Prevented . | . . . Parts Restored . | . . . Kills | -11 -10 -10 ------- Run | Yrd Mat Sub Combat Hostiles Destroyed 17 | . 9 8 Guns 17 | . 9 8 Classes Destroyed 6 | . 5 1 Builder 1 | . 1 . Hauler 1 | . 1 . Recycler 1 | . 1 . Swarmer 7 | . 3 4 Grunt 9 | . 6 3 Subdweller 1 | . . 1 Best Kill Streak 3 | . 3 3 Combat Bots Only 3 | . 3 3 Max Kills in Single Turn 2 | . 2 1 Gunslinging . | . . . Exploded . | . . . Melee . | . . . Uniques/NPCs Destroyed . | . . . Combat | -11 -10 -10 -------- Run | Yrd Mat Sub Hostile Shots Fired 201 | . 52 149 Missed 66 | . 19 47 Hits 135 | . 33 102 Projectile 135 | . 33 102 Critical Strikes 1 | . . 1 Damage Taken 1170 | . 372 798 Core 279 | . 117 162 Absorbed by Shields . | . . . Ignored by Resistances 30 | . . 30 Core Remaining (%) 100 | 100 . . Volleys Fired 61 | . 31 30 Largest 2 | . 2 2 Hottest 60 | . 46 60 Shots Fired 102 | . 62 40 Gun 102 | . 62 40 Cannon . | . . . Launcher . | . . . Special . | . . . Kinetic 97 | . 62 35 Thermal 5 | . . 5 Explosive . | . . . Electromagnetic . | . . . Robot Hit Streak 10 | . 6 10 Robot Miss Streak 3 | . 2 3 Penetration Max . | . . . Secondary Targets 2 | . 2 . Max Gunslinging Chain 1 | . 1 . Shots Hit Robots 72 | . 45 27 Core Hits 37 | . 24 13 Critical Kills 1 | . 1 . Critical Parts Destroyed 1 | . . 1 Critical Strikes 2 | . 1 1 Destroy 2 | . 1 1 Melee Attacks . | . . . Impact . | . . . Slashing . | . . . Piercing . | . . . Sneak Attacks . | . . . Combat Hostiles . | . . . Follow-up Attacks . | . . . Damage Inflicted 924 | . 531 393 Guns 910 | . 517 393 Cannons . | . . . Explosions . | . . . Melee . | . . . Ramming 14 | . 14 . Kinetic 887 | . 517 370 Thermal 23 | . . 23 Explosive . | . . . Electromagnetic . | . . . Impact . | . . . Slashing . | . . . Piercing . | . . . Highest Corruption 10 | . . 10 Average Corruption 10 | . . 10 Corruption Purged . | . . . Corruption Blocked . | . . . Effects 1 | . . 1 Message Errors 1 | . . 1 Overload Shots . | . . . Overflow Damage . | . . . Projectiles . | . . . Explosions . | . . . Melee . | . . . Knockbacks . | . . . Impact . | . . . Kinetic . | . . . Secondary . | . . . Self-Inflicted Damage . | . . . Shots . | . . . Rammed 1 | . 1 . Targets Rammed 1 | . 1 . Kicked . | . . . Crushed . | . . . Highest Temperature 18 | . 18 . Average Temperature 8 | . 8 . Received Heat Transfer 402 | . 156 246 Siege Activations . | . . . Martial Activations . | . . . Shielding Activations . | . . . Robots Disrupted . | . . . Combat Hostiles . | . . . Robots Corrupted . | . . . Combat Hostiles . | . . . Parts Fried . | . . . Impact Corruptions . | . . . Robots Melted . | . . . Combat Hostiles . | . . . Parts Melted . | . . . Heat Transferred 25 | . . 25 Parts Sabotaged . | . . . Parts Stolen . | . . . Parts Stripped . | . . . Power Chain Reactions . | . . . Alert | -11 -10 -10 ------- Run | Yrd Mat Sub Maximum Alert Level . | . . . Low Security (%) 100 | 100 100 . Level 1 . | . . . Level 2 . | . . . Level 3 . | . . . Level 4 . | . . . Level 5 . | . . . High Security . | . . . Max Security . | . . . Peak Influence 67 | . 67 . Initial . | . . . Average 11 | . 11 . Influence Increases 573 | . 246 327 Destroy 0b10 Robot/C 340 | . 180 160 Destroy 0b10 Robot/NC 15 | . 15 . Destroy Leader 32 | . 32 . Allied During Kill 2 | . . 2 Successful Hack 19 | . 19 . Lose Combat Pursuer 165 | . . 165 Influence Decreases 428 | . 246 182 Time Decay 328 | . 246 82 Lost Part 60 | . . 60 Lost Ally 40 | . . 40 Squads Dispatched . | . . . Investigation . | . . . Extermination . | . . . Reinforcement . | . . . Assault . | . . . Garrison . | . . . Intercept . | . . . Searches Triggered . | . . . Construction Impeded . | . . . Haulers Reinforced . | . . . Active Scanning Responses . | . . . Cargo Convoy Interrupts . | . . . Stealth | -11 -10 -10 --------- Run | Yrd Mat Sub Distress Signals . | . . . Communications Jammed . | . . . Distress Signals . | . . . Times Spotted 35 | . 17 18 Peak Tracking Total 6 | . 4 6 Tactical Retreats 3 | . . 3 Traps | -11 -10 -10 ------- Run | Yrd Mat Sub Traps Triggered . | . . . Indirectly . | . . . Trap Hack Attempts . | . . . Triggered . | . . . Disarmed 3 | . 3 . Reprogrammed 4 | . 4 . Reused . | . . . Traps Extracted . | . . . Installed . | . . . Triggered . | . . . Machines | -11 -10 -10 ---------- Run | Yrd Mat Sub Machines Disabled . | . . . Max in Single Turn . | . . . Machines Repaired . | . . . Machines Dismantled . | . . . Machines Sabotaged . | . . . Overloaded Fab Kills . | . . . Hacking | -11 -10 -10 --------- Run | Yrd Mat Sub Machines Accessed 4 | . 3 1 Terminals 3 | . 3 . Fabricators . | . . . Repair Stations . | . . . Recycling Units . | . . . Scanalyzers . | . . . Garrison Access . | . . . Total Hacks 10 | . 6 4 Successful 9 | . 5 4 Failed 1 | . 1 . Catastrophic . | . . . Database Lockouts . | . . . Manual 2 | . 2 . Terminals 6 | . 6 . Fabricators . | . . . Repair Stations . | . . . Recycling Units . | . . . Scanalyzers . | . . . Garrison Access . | . . . Terminal Hacks 9 | . 5 4 Record 4 | . . 4 Prototype ID Bank 1 | . 1 . Branch Access Points 1 | . 1 . Disarm Traps 1 | . 1 . Reprogram Traps 2 | . 2 . Fabricator Hacks . | . . . Repair Station Hacks . | . . . Recycling Unit Hacks . | . . . Scanalyzer . | . . . Garrison Access Hacks . | . . . Unauthorized Hacks . | . . . Terminals . | . . . Fabricators . | . . . Repair Stations . | . . . Recycling Units . | . . . Scanalyzers . | . . . Garrison Access . | . . . Data Cores Recovered . | . . . Used . | . . . Hacking Detections 1 | . 1 . Full Trace Events . | . . . Feedback Events . | . . . Feedback Blocked . | . . . Robot Schematics Acquired . | . . . Robots Built . | . . . Authchips . | . . . Time . | . . . Total Robot Build Rating . | . . . Part Schematics Acquired . | . . . Parts Built . | . . . Authchips . | . . . Time . | . . . Total Part Build Rating . | . . . Part Studies Acquired . | . . . Parts Repaired . | . . . Time . | . . . Parts Recycled . | . . . Recycled Matter . | . . . Retrieved Matter . | . . . Retrieved Components . | . . . Parts Scanalyzed . | . . . Part Schematics Acquired . | . . . Parts Damaged . | . . . Bothacking | -11 -10 -10 ------------ Run | Yrd Mat Sub Used RIF Installer . | . . . Robots Hacked . | . . . Non-combat . | . . . Combat . | . . . Robot Hacks Applied . | . . . Relay Couplers Released . | . . . Fabnet Peak Effective % . | . . . Robots Rewired . | . . . Allies Hacked . | . . . Hacks Repelled . | . . . Allies | -11 -10 -10 -------- Run | Yrd Mat Sub Total Allies 2 | . . 2 Largest Group 1 | . . 1 Highest-Rated Group 5 | . . 5 Highest-Rated Ally 5 | . . 5 Total Orders . | . . . Ally Attacks 3 | . . 3 Total Damage 25 | . . 25 Kills 1 | . . 1 Allies Corrupted . | . . . Allies Melted . | . . . X0-1V1 Amusement Gains 27 | . 17 10 Good Acts 11 | . . 11 Bad Acts 14 | . . 14 Intel | -11 -10 -10 ------- Run | Yrd Mat Sub Active Infowar (turns) . | . . . Robot Analysis Total . | . . . Derelict Logs Recovered 1 | . . 1 Drone Launches . | . . . Drone Recoveries . | . . . Exploration | -11 -10 -10 ------------- Run | Yrd Mat Sub Turns Passed 4034 | 7 1421 2606 Spaces Moved 1231 | 1 417 813 Core 2 | . . 2 Treads 1149 | 1 417 731 Legs . | . . . Wheels 80 | . . 80 Hover . | . . . Flight . | . . . Fastest Speed 160 | 160 160 200 Average Speed 310 | 160 311 310 Slowest Speed 1400 | 160 320 1400 Overloaded Moves . | . . . Propulsion Burnouts . | . . . Robots Hopped . | . . . Potential Cave-ins . | . . . Cave-ins Triggered . | . . . Exploration Rate (%) 35 | 2 66 38 Regions Visited 2 Branch Regions 1 Pre-discovered Areas . | . . . Known Exits Taken . | . . . Unknown Exits Taken 2 | 1 1 . Scrap Searched 2 | . . 2 Spaces Dug . | . . . Terrain Destroyed . | . . . Melee . | . . . Projectile . | . . . AOE . | . . . Terrain Rammed . | . . . Walls Destroyed . | . . . Machines Disabled . | . . . Actions | -11 -10 -10 --------- Run | Yrd Mat Sub Total 1353 | 7 485 861 Wait 29 | . 19 10 Move 1229 | . 416 813 Hop . | . . . Pick Up 17 | . 13 4 Fast Attach . | . . . Attach 3 | . 1 2 Detach . | . . . Swap 8 | 3 3 2 Drop 5 | 4 1 . Fire 61 | . 31 30 Melee . | . . . Ram . | . . . Kick . | . . . Crush 1 | . 1 . Escape Stasis . | . . . Rewire . | . . . Trap . | . . . Miscellaneous . | . . . Route ------- -11/Scrapyard -10/Materials (discovered 5 exits: [*Mat x2] / *Min x2 / *Sub) -10/Subcaves (discovered 3 exits: Mat / [*Rec] / [*Scr]) History --------- Turn | Location | Event 8 | -11/Scrapyard | Discovered new exit (range 0) 8 | -11/Scrapyard | Entered Materials 314 | -10/Materials | Build established: Mutant 341 | -10/Materials | Discovered new exit (range 8) 412 | -10/Materials | Identified exit to Mines 599 | -10/Materials | Discovered new exit (range 3) 1088 | -10/Materials | Discovered new exit (range 15) 1341 | -10/Materials | Discovered new exit (range 7) 1418 | -10/Materials | Prayed at D.C.S.S. Altar Unit 1429 | -10/Materials | Entered Subcaves 1430 | -10/Subcaves | Approached by a straggling Scientist 1452 | -10/Subcaves | Learned Materials garrison access intel 1665 | -10/Subcaves | Scientist uncovered a shortcut to Scraptown 2372 | -10/Subcaves | Core integrity fell below 50% 2654 | -10/Subcaves | X0-1V1 sent hostile G-34 Mercenary (x3) 2786 | -10/Subcaves | A swath of the cavern ceiling suddenly collapsed 2860 | -10/Subcaves | Shifting Twisted Machinery released Sub. Laser 3122 | -10/Subcaves | Visited Clippyterm 3132 | -10/Subcaves | Learned Research security intel 3132 | -10/Subcaves | Learned Factory emergency access door positions 3623 | -10/Subcaves | System corruption reached 10% 3649 | -10/Subcaves | Energy capacity permanently improved by X0-1V1 (+200; -100 max core) 3659 | -10/Subcaves | Identified exit to Materials 3659 | -10/Subcaves | X0-1V1 revealed exit location to -8/Materials 3713 | -10/Subcaves | X0-1V1 activates XOMVISION 3717 | -10/Subcaves | Core integrity restored by X0-1V1 (+28) 3752 | -10/Subcaves | X0-1V1 mutated your Weapon slot to Utility slot 3762 | -10/Subcaves | X0-1V1 tapped a No Entrance sign 3814 | -10/Subcaves | Discovered new exit (range 9) 3814 | -10/Subcaves | X0-1V1 sent you into danger 3842 | -10/Subcaves | X0-1V1 sent allied S-10 Pest (x2) 3883 | -10/Subcaves | Lost 4 parts (1p2n1w) 3951 | -10/Subcaves | X0-1V1 sent you into danger 3997 | -10/Subcaves | X0-1V1 sent hostile S-10 Pest (x3) 4014 | -10/Subcaves | Core integrity fell below 20% 4035 | -10/Subcaves | Destroyed by S-10 Pest with Light Assault Rifle Last Messages --------------- 04009_ S-10 Pest suffers critical hit (Destroy). 04009_ Destroyed Flight Unit. 04011_ S-10 Pest destroyed. 04012_ X0-1V1 manipulates the space around you (+17% KI resistance). 04013_ Subatomizers dissect the Lgt. Assault Rifle. 04019_ X0-1V1's Piety Tracker destroyed. 04019_ X0-1V1 is mildly amused. 04021_ Lgt. Assault Rifle fries itself beyond repair. 04022_ S-10 Pest destroyed. 04027_ Subatomizers dissect the Lgt. Ion Engine. 04031_ Lgt. Ion Engine fries itself beyond repair. 04031_ Lgt. Assault Rifle fries itself beyond repair. 04031_ Ranged accuracy returns to normal. 04033_ Shotgun destroyed. 04035_ X0-1V1 cackles wildly! Map ----- +----------------------------------------------------+ | #?????######??????##% ##??????? | | ##### #???### #?????## %% ##?????? | | ######???######??## % % #?????# % % #?????? | | ##??????????????## #??????# ## ##?????? | | # ##?????????????# %###????# ####??????? | | ## #?????????????### ##???# #???????? | | ## #???????????????#### #?### #?????? | | ##??????????????????## #?# % # ### | | ##???????????????????## #?# &%& # | | ##?????????????????#### ### & % | | ##????????????????## ## #### # ## | | #????????????????# % #????#??? | | #????????????????## # """"" % #??????? | | ##????????????????# ## ##""""##" #?????? | | ####?????????????????## ## """ ""### ###?????? | | ?????????????????????# """"####?## #???????? | | ?????????????????????# < """"##??????# ??????? | | ?????????????????????## """##?????##? #????? | | ??????????????????????#% """#????? ### ##????? | | ??????????????????????# "##????# ### #?????? | | ??????????????????????# ##????# ?? #?????? | | ??????????????????????## ##????# ???# ?????? | | ??????????????????????# s ##### ??????###????? | | ??????????????????????# %%# ??????????????? | | ??????????????????????# ## #????????????? | | ??????????????????????## @ # ######????????????? | | ?????????????????????##""" # ##????????????????? | | ?????????????????????#"^""#" ##???????????????? | | ?????????????????????# " #???????????????? | | ?????????????????????## " ##??????## ??? | | ??????????????????????### " ### ?? | | ????????????????????????## "" ?? | | ?????????????????????????###u ?? | | ?????????????????????????# " # #??? | | ?????????????????????# " #??? | | ?????????????????????## " ## #??? | | ??????????????????????# #"# #??## ??? | | ??????????????????????# ##### ^ #??????????? | | ??????????????????????## ????? #?????????? | | ???????????????????????##?????? ### " #????????? | | ??????????????????????????????? #??# ""##????????? | | ????????????????????????????????#???####?????????? | | ?????????????????????????????????????????????????? | | ?????????????????????????????????????????????????? | | ?????????????????????????????????????????????????? | | ?????????????????????????????????????????????????? | | ?????????????????????????????????????????????????? | | ?????????????????????????????????????????????????? | | ??????????????????????###????????????????????????? | | ###?????######?????#### ##???????????????????????? | +----------------------------------------------------+ Best States ------------- Heat Dissipation 25 Energy Generation 10 Energy Capacity 1125 Matter Stores 300 Matter Capacity 300 Sight Range 19 Terrain Scan Density 10 Resistance: KI 17 Evasion (%) 40 Recoil Reduction 2 Item Schematics ----------------- None Robot Schematics ------------------ None Fabricated ------------ Nothing Repaired ---------- Nothing Studied --------- None Alien Tech Used ----------------- None Achievements -------------- None Challenges ------------ None Game ------ Seed ArchitectPotentialMask Manual? 0 Play Time 00:11:32 Cumulative 49.9 hours Start 2026.07.16 @ 17:14:00 End 2026.07.16 @ 17:25:03 Sessions 1 Manual Loads 0 Difficulty Rogue Special Mode None Game No. 225 Rogue 180 Adventurer 45 Explorer 0 Win Type - Total 1 Types 1/0/0/0/0/0/0/0/0/0 Lore% 60 Gallery% 41 Achievement% 36 Wizard Run 0 Options --------- Layout 1 ASCII 0 Keyboard 0 Movement Numpad Keybinds 0 Fullscreen 1 Font 24/Smallcaps Map View 50x35 Zoom Use 0% Tactical HUD 1 Map Filters NONE Filters NONE Steam 1 RUN: 00372d2e-146a-4e06-94b8-5ea77f461fdc